[Event "Titled Tuesday Blitz October 31 Late 2023"]
[White "Blomqvist, Erik"]
[Black "Polaczek, Richard"]
[WhiteFideId "1709437"]
[BlackFideId "200026"]
[WhiteElo "2554"]
[BlackElo "2445"]
[Result "0-1"]
[Round "11"]
[TimeControl "180+1"]
[Date "2023.10.31"]
[WhiteClock "0:00:03"]
[BlackClock "0:00:14"]
[Board "53"]

1. e4 {[%clk 0:01:12]}  Nf6 {[%clk 0:02:56]} 2. e5 {[%clk 0:01:11]}  Nd5 {[%clk 0:02:55]} 3. d4 {[%clk 0:01:12]}  d6 {[%clk 0:02:55]} 4. c4 {[%clk 0:01:12]}  Nb6 {[%clk 0:02:54]} 5. f4 {[%clk 0:01:13]}  dxe5 {[%clk 0:02:53]} 6. fxe5 {[%clk 0:01:13]}  c5 {[%clk 0:02:53]} 7. d5 {[%clk 0:01:13]}  g6 {[%clk 0:02:53]} 8. Nf3 {[%clk 0:01:08]}  Bg7 {[%clk 0:02:52]} 9. h3 {[%clk 0:00:58]}  O-O {[%clk 0:02:51]} 10. Nc3 {[%clk 0:00:56]}  e6 {[%clk 0:02:44]} 11. Be2 {[%clk 0:00:32]}  exd5 {[%clk 0:01:55]} 12. cxd5 {[%clk 0:00:33]}  N8d7 {[%clk 0:01:47]} 13. e6 {[%clk 0:00:18]}  fxe6 {[%clk 0:01:36]} 14. dxe6 {[%clk 0:00:19]}  Ne5 {[%clk 0:01:03]} 15. Qxd8 {[%clk 0:00:20]}  Rxd8 {[%clk 0:01:03]} 16. Bg5 {[%clk 0:00:16]}  Re8 {[%clk 0:00:59]} 17. Nb5 {[%clk 0:00:12]}  Nxf3+ {[%clk 0:00:55]} 18. Bxf3 {[%clk 0:00:13]}  Bxe6 {[%clk 0:00:37]} 19. Nc7 {[%clk 0:00:13]}  h6 {[%clk 0:00:30]} 20. Bf4 {[%clk 0:00:09]}  g5 {[%clk 0:00:29]} 21. Bh2 {[%clk 0:00:04]}  Bf5+ {[%clk 0:00:28]} 22. Nxe8 {[%clk 0:00:04]}  Rxe8+ {[%clk 0:00:28]} 23. Kf2 {[%clk 0:00:03]}  Bd4+ {[%clk 0:00:26]} 24. Kg3 {[%clk 0:00:03]}  Be5+ {[%clk 0:00:26]} 25. Kf2 {[%clk 0:00:03]}  Bd4+ {[%clk 0:00:25]} 26. Kg3 {[%clk 0:00:03]}  Bxb2 {[%clk 0:00:25]} 27. Rae1 {[%clk 0:00:03]}  Rd8 {[%clk 0:00:24]} 28. Re2 {[%clk 0:00:03]}  Bd4 {[%clk 0:00:23]} 29. Rhe1 {[%clk 0:00:02]}  Kf7 {[%clk 0:00:22]} 30. Re7+ {[%clk 0:00:01]}  Kf6 {[%clk 0:00:21]} 31. Bg4 {[%clk 0:00:01]}  Nd5 {[%clk 0:00:19]} 32. Bxf5 {[%clk 0:00:01]}  Nxe7 {[%clk 0:00:19]} 33. Be4 {[%clk 0:00:01]}  Be5+ {[%clk 0:00:18]} 34. Kg4 {[%clk 0:00:01]}  Bxh2 {[%clk 0:00:17]} 35. Rf1+ {[%clk 0:00:02]}  Ke5 {[%clk 0:00:16]} 36. Bxb7 {[%clk 0:00:03]}  Rd4+ {[%clk 0:00:15]} 37. Kh5 {[%clk 0:00:03]}  Rh4# {[%clk 0:00:14]} 0-1


[Site "https://www.chess.com"]

[Event "Titled Tuesday Blitz October 31 Late 2023"]
[White "Golubev, Mikhail"]
[Black "Jovic, Stanoje"]
[WhiteFideId "14100983"]
[BlackFideId "905020"]
[WhiteElo "2530"]
[BlackElo "2438"]
[Result "1-0"]
[Round "11"]
[TimeControl "180+1"]
[Date "2023.10.31"]
[WhiteClock "0:01:06"]
[BlackClock "0:00:00"]
[Board "55"]

1. e4 {[%clk 0:03:00]}  c6 {[%clk 0:02:59]} 2. Nf3 {[%clk 0:02:59]}  d5 {[%clk 0:02:59]} 3. Nc3 {[%clk 0:03:00]}  Nf6 {[%clk 0:02:57]} 4. e5 {[%clk 0:02:56]}  Ne4 {[%clk 0:02:57]} 5. Ne2 {[%clk 0:02:53]}  Qb6 {[%clk 0:02:54]} 6. d4 {[%clk 0:02:48]}  f6 {[%clk 0:02:45]} 7. Ng3 {[%clk 0:02:48]}  Bg4 {[%clk 0:02:42]} 8. Bd3 {[%clk 0:02:39]}  fxe5 {[%clk 0:02:33]} 9. Nxe4 {[%clk 0:02:34]}  dxe4 {[%clk 0:02:32]} 10. Bxe4 {[%clk 0:02:34]}  exd4 {[%clk 0:02:27]} 11. Qd3 {[%clk 0:02:19]}  Bxf3 {[%clk 0:02:21]} 12. gxf3 {[%clk 0:02:17]}  Nd7 {[%clk 0:02:18]} 13. Bf4 {[%clk 0:02:08]}  e5 {[%clk 0:02:12]} 14. Bg5 {[%clk 0:02:02]}  Bb4+ {[%clk 0:02:11]} 15. c3 {[%clk 0:01:57]}  Be7 {[%clk 0:02:09]} 16. Bxe7 {[%clk 0:01:35]}  Kxe7 {[%clk 0:02:08]} 17. Rg1 {[%clk 0:01:35]}  g6 {[%clk 0:02:05]} 18. O-O-O {[%clk 0:01:25]}  Nf6 {[%clk 0:01:48]} 19. Rg5 {[%clk 0:01:14]}  Qc5 {[%clk 0:01:35]} 20. f4 {[%clk 0:01:10]}  dxc3 {[%clk 0:00:00]} 21. Rxe5+ {[%clk 0:01:06]} 1-0


[Site "https://www.chess.com"]

[Event "Titled Tuesday Blitz October 31 Late 2023"]
[White "Avazkhonov, Alikhon"]
[Black "szachmistrz2500"]
[WhiteFideId "14208504"]
[WhiteElo "2526"]
[BlackElo "2436"]
[Result "1-0"]
[Round "11"]
[TimeControl "180+1"]
[Date "2023.10.31"]
[WhiteClock "0:00:05"]
[BlackClock "0:00:00"]
[Board "56"]

1. d4 {[%clk 0:02:39]}  Nf6 {[%clk 0:02:57]} 2. c4 {[%clk 0:02:39]}  e6 {[%clk 0:02:56]} 3. Nc3 {[%clk 0:02:40]}  d5 {[%clk 0:02:51]} 4. cxd5 {[%clk 0:02:41]}  exd5 {[%clk 0:02:51]} 5. Bg5 {[%clk 0:02:41]}  Be7 {[%clk 0:02:42]} 6. e3 {[%clk 0:02:40]}  O-O {[%clk 0:02:41]} 7. Bd3 {[%clk 0:02:39]}  c6 {[%clk 0:02:39]} 8. Qc2 {[%clk 0:02:39]}  Nbd7 {[%clk 0:02:38]} 9. Nf3 {[%clk 0:02:39]}  Re8 {[%clk 0:02:33]} 10. O-O-O {[%clk 0:02:38]}  Nf8 {[%clk 0:02:28]} 11. Kb1 {[%clk 0:02:35]}  Ne4 {[%clk 0:02:26]} 12. Bxe4 {[%clk 0:02:17]}  Bxg5 {[%clk 0:02:20]} 13. Bd3 {[%clk 0:02:16]}  Be7 {[%clk 0:02:11]} 14. h4 {[%clk 0:02:17]}  Be6 {[%clk 0:01:55]} 15. Rdg1 {[%clk 0:02:14]}  b5 {[%clk 0:01:46]} 16. g4 {[%clk 0:02:13]}  a5 {[%clk 0:01:45]} 17. Ne5 {[%clk 0:02:14]}  Rc8 {[%clk 0:01:41]} 18. g5 {[%clk 0:02:12]}  b4 {[%clk 0:01:38]} 19. Ne2 {[%clk 0:02:11]}  c5 {[%clk 0:01:37]} 20. dxc5 {[%clk 0:02:06]}  Bxc5 {[%clk 0:01:36]} 21. Qd2 {[%clk 0:02:05]}  d4 {[%clk 0:01:32]} 22. Nxd4 {[%clk 0:02:00]}  Bxd4 {[%clk 0:01:31]} 23. exd4 {[%clk 0:02:01]}  Qd5 {[%clk 0:01:31]} 24. b3 {[%clk 0:02:01]}  Red8 {[%clk 0:01:28]} 25. Rd1 {[%clk 0:01:44]}  a4 {[%clk 0:01:22]} 26. Bc4 {[%clk 0:01:30]}  Qa5 {[%clk 0:01:22]} 27. Bxe6 {[%clk 0:00:35]}  Nxe6 {[%clk 0:01:23]} 28. d5 {[%clk 0:00:36]}  axb3 {[%clk 0:01:21]} 29. axb3 {[%clk 0:00:33]}  Rc3 {[%clk 0:01:17]} 30. Qa2 {[%clk 0:00:21]}  Qxa2+ {[%clk 0:00:47]} 31. Kxa2 {[%clk 0:00:22]}  Nc5 {[%clk 0:00:46]} 32. Kb2 {[%clk 0:00:05]}  Rxb3+ {[%clk 0:00:43]} 33. Kc2 {[%clk 0:00:05]}  Rc3+ {[%clk 0:00:36]} 34. Kb2 {[%clk 0:00:06]}  Rb3+ {[%clk 0:00:05]} 35. Kc2 {[%clk 0:00:05]}  Ra8 {[%clk 0:00:00]} 36. Ra1 {[%clk 0:00:05]} 1-0


[Site "https://www.chess.com"]

[Event "Titled Tuesday Blitz October 31 Late 2023"]
[White "Mystery2007"]
[Black "Kornyukov, Alexey"]
[BlackFideId "4150457"]
[WhiteElo "2484"]
[BlackElo "2342"]
[Result "1-0"]
[Round "11"]
[TimeControl "180+1"]
[Date "2023.10.31"]
[WhiteClock "0:00:03"]
[BlackClock "0:00:00"]
[Board "58"]

1. Nf3 {[%clk 0:03:00]}  d5 {[%clk 0:02:57]} 2. c4 {[%clk 0:03:01]}  c6 {[%clk 0:02:55]} 3. g3 {[%clk 0:03:00]}  Nf6 {[%clk 0:02:53]} 4. cxd5 {[%clk 0:03:00]}  cxd5 {[%clk 0:02:53]} 5. Bg2 {[%clk 0:03:01]}  Nc6 {[%clk 0:02:53]} 6. O-O {[%clk 0:03:01]}  Bf5 {[%clk 0:02:51]} 7. d3 {[%clk 0:03:01]}  e6 {[%clk 0:02:51]} 8. b3 {[%clk 0:02:59]}  Be7 {[%clk 0:02:50]} 9. Bb2 {[%clk 0:02:59]}  O-O {[%clk 0:02:50]} 10. Nbd2 {[%clk 0:02:57]}  Rc8 {[%clk 0:02:47]} 11. Nd4 {[%clk 0:02:53]}  Bg6 {[%clk 0:02:38]} 12. Rc1 {[%clk 0:02:47]}  Qa5 {[%clk 0:02:35]} 13. Ra1 {[%clk 0:02:32]}  Ba3 {[%clk 0:02:22]} 14. Nxc6 {[%clk 0:02:31]}  Rxc6 {[%clk 0:02:17]} 15. Bxf6 {[%clk 0:01:56]}  gxf6 {[%clk 0:02:18]} 16. e4 {[%clk 0:01:55]}  dxe4 {[%clk 0:02:17]} 17. Nxe4 {[%clk 0:01:40]}  Bb2 {[%clk 0:02:07]} 18. Rb1 {[%clk 0:01:38]}  Bd4 {[%clk 0:02:06]} 19. h4 {[%clk 0:01:18]}  h5 {[%clk 0:02:01]} 20. Bf3 {[%clk 0:01:14]}  Qe5 {[%clk 0:01:51]} 21. Kg2 {[%clk 0:01:06]}  Rfc8 {[%clk 0:01:50]} 22. Re1 {[%clk 0:01:05]}  Rc2 {[%clk 0:01:45]} 23. Re2 {[%clk 0:00:49]}  Rxe2 {[%clk 0:00:53]} 24. Qxe2 {[%clk 0:00:50]}  b6 {[%clk 0:00:44]} 25. Qd2 {[%clk 0:00:42]}  Kg7 {[%clk 0:00:39]} 26. Rc1 {[%clk 0:00:40]}  Rd8 {[%clk 0:00:28]} 27. Rc4 {[%clk 0:00:34]}  Bc5 {[%clk 0:00:25]} 28. Qc2 {[%clk 0:00:31]}  Bxe4 {[%clk 0:00:21]} 29. Rxe4 {[%clk 0:00:30]}  Qd6 {[%clk 0:00:20]} 30. d4 {[%clk 0:00:24]}  Bxd4 {[%clk 0:00:18]} 31. Bxh5 {[%clk 0:00:24]}  f5 {[%clk 0:00:18]} 32. Re2 {[%clk 0:00:22]}  Bc5 {[%clk 0:00:18]} 33. Bf3 {[%clk 0:00:21]}  Qd4 {[%clk 0:00:17]} 34. h5 {[%clk 0:00:18]}  Rd6 {[%clk 0:00:17]} 35. Qc1 {[%clk 0:00:17]}  Qf6 {[%clk 0:00:16]} 36. Qf4 {[%clk 0:00:15]}  Rd4 {[%clk 0:00:15]} 37. Qb8 {[%clk 0:00:13]}  Qg5 {[%clk 0:00:15]} 38. Qe5+ {[%clk 0:00:10]}  Qf6 {[%clk 0:00:14]} 39. Qc7 {[%clk 0:00:11]}  Rd3 {[%clk 0:00:11]} 40. Qxa7 {[%clk 0:00:07]}  Qg5 {[%clk 0:00:09]} 41. Qb7 {[%clk 0:00:08]}  Rd4 {[%clk 0:00:08]} 42. Qc7 {[%clk 0:00:07]}  Qf6 {[%clk 0:00:08]} 43. Qb8 {[%clk 0:00:05]}  Rd3 {[%clk 0:00:07]} 44. h6+ {[%clk 0:00:04]}  Qxh6 {[%clk 0:00:07]} 45. Qe5+ {[%clk 0:00:04]}  Qf6 {[%clk 0:00:07]} 46. Qf4 {[%clk 0:00:04]}  Rd4 {[%clk 0:00:07]} 47. Qc1 {[%clk 0:00:03]}  Rd3 {[%clk 0:00:06]} 48. Qc2 {[%clk 0:00:03]}  Rc3 {[%clk 0:00:06]} 49. Qd2 {[%clk 0:00:03]}  Bd4 {[%clk 0:00:04]} 50. Qf4 {[%clk 0:00:03]}  e5 {[%clk 0:00:04]} 51. Qd2 {[%clk 0:00:01]}  e4 {[%clk 0:00:05]} 52. Bxe4 {[%clk 0:00:02]}  fxe4 {[%clk 0:00:04]} 53. Rxe4 {[%clk 0:00:02]}  Bc5 {[%clk 0:00:03]} 54. Rg4+ {[%clk 0:00:03]}  Kf8 {[%clk 0:00:00]} 55. Qd7 {[%clk 0:00:03]} 1-0


[Site "https://www.chess.com"]

[Event "Titled Tuesday Blitz October 31 Late 2023"]
[White "Hoffmann, Asa"]
[Black "Olsen, Filip Boe"]
[WhiteFideId "2001470"]
[BlackFideId "1440640"]
[WhiteElo "2426"]
[BlackElo "2624"]
[Result "1-0"]
[Round "11"]
[TimeControl "180+1"]
[Date "2023.10.31"]
[WhiteClock "0:00:28"]
[BlackClock "0:00:09"]
[Board "59"]

1. d4 {[%clk 0:02:54]}  Nf6 {[%clk 0:02:58]} 2. Bg5 {[%clk 0:02:51]}  e6 {[%clk 0:02:55]} 3. Nd2 {[%clk 0:02:50]}  h6 {[%clk 0:02:54]} 4. Bh4 {[%clk 0:02:49]}  c5 {[%clk 0:02:50]} 5. c3 {[%clk 0:02:48]}  Nc6 {[%clk 0:02:48]} 6. e3 {[%clk 0:02:48]}  Be7 {[%clk 0:02:48]} 7. Bd3 {[%clk 0:02:47]}  d5 {[%clk 0:02:48]} 8. f4 {[%clk 0:02:47]}  g5 {[%clk 0:02:29]} 9. fxg5 {[%clk 0:02:40]}  hxg5 {[%clk 0:02:30]} 10. Bxg5 {[%clk 0:02:39]}  e5 {[%clk 0:02:30]} 11. Bb5 {[%clk 0:02:26]}  Ng4 {[%clk 0:02:22]} 12. Bxe7 {[%clk 0:02:17]}  Qxe7 {[%clk 0:02:23]} 13. Qe2 {[%clk 0:02:08]}  exd4 {[%clk 0:01:56]} 14. exd4 {[%clk 0:01:59]}  Ne3 {[%clk 0:01:53]} 15. Kf2 {[%clk 0:01:39]}  Ng4+ {[%clk 0:01:52]} 16. Ke1 {[%clk 0:01:38]}  cxd4 {[%clk 0:01:38]} 17. Bxc6+ {[%clk 0:01:35]}  bxc6 {[%clk 0:01:37]} 18. Qxe7+ {[%clk 0:01:35]}  Kxe7 {[%clk 0:01:37]} 19. cxd4 {[%clk 0:01:35]}  Nxh2 {[%clk 0:01:29]} 20. Ke2 {[%clk 0:01:12]}  Bd7 {[%clk 0:01:26]} 21. Ngf3 {[%clk 0:01:11]}  Ng4 {[%clk 0:01:27]} 22. Ne5 {[%clk 0:01:06]}  Nxe5 {[%clk 0:01:23]} 23. dxe5 {[%clk 0:01:06]}  Rxh1 {[%clk 0:01:16]} 24. Rxh1 {[%clk 0:01:05]}  Rg8 {[%clk 0:01:17]} 25. Kf2 {[%clk 0:01:04]}  Bg4 {[%clk 0:01:08]} 26. Nf3 {[%clk 0:01:02]}  Bxf3 {[%clk 0:01:01]} 27. gxf3 {[%clk 0:01:01]}  c5 {[%clk 0:00:59]} 28. f4 {[%clk 0:01:01]}  Rb8 {[%clk 0:00:51]} 29. b3 {[%clk 0:01:01]}  c4 {[%clk 0:00:52]} 30. bxc4 {[%clk 0:00:59]}  dxc4 {[%clk 0:00:52]} 31. Ke3 {[%clk 0:00:59]}  Rb2 {[%clk 0:00:52]} 32. Rc1 {[%clk 0:00:58]}  Rxa2 {[%clk 0:00:47]} 33. Rxc4 {[%clk 0:00:57]}  Kd7 {[%clk 0:00:35]} 34. Ke4 {[%clk 0:00:57]}  a5 {[%clk 0:00:33]} 35. Kf5 {[%clk 0:00:57]}  a4 {[%clk 0:00:29]} 36. Kf6 {[%clk 0:00:57]}  a3 {[%clk 0:00:29]} 37. Ra4 {[%clk 0:00:50]}  Rf2 {[%clk 0:00:28]} 38. f5 {[%clk 0:00:49]}  a2 {[%clk 0:00:27]} 39. Ra7+ {[%clk 0:00:47]}  Kc6 {[%clk 0:00:26]} 40. e6 {[%clk 0:00:32]}  fxe6 {[%clk 0:00:22]} 41. Kxe6 {[%clk 0:00:32]}  Re2+ {[%clk 0:00:20]} 42. Kf7 {[%clk 0:00:31]}  Rf2 {[%clk 0:00:20]} 43. f6 {[%clk 0:00:32]}  Kd6 {[%clk 0:00:20]} 44. Kg7 {[%clk 0:00:31]}  Rg2+ {[%clk 0:00:20]} 45. Kf8 {[%clk 0:00:30]}  Rf2 {[%clk 0:00:21]} 46. f7 {[%clk 0:00:30]}  Ke6 {[%clk 0:00:21]} 47. Ke8 {[%clk 0:00:29]}  Rxf7 {[%clk 0:00:09]} 48. Ra6+ {[%clk 0:00:28]} 1-0


[Site "https://www.chess.com"]

[Event "Titled Tuesday Blitz October 31 Late 2023"]
[White "Colbow, Collin"]
[Black "Pinto, Daniel"]
[WhiteFideId "16201132"]
[BlackFideId "3303144"]
[WhiteElo "2554"]
[BlackElo "2416"]
[Result "0-1"]
[Round "11"]
[TimeControl "180+1"]
[Date "2023.10.31"]
[WhiteClock "0:00:02"]
[BlackClock "0:00:16"]
[Board "62"]

1. c4 {[%clk 0:02:58]}  e5 {[%clk 0:02:57]} 2. a3 {[%clk 0:02:57]}  a5 {[%clk 0:02:53]} 3. Nc3 {[%clk 0:02:54]}  Nc6 {[%clk 0:02:53]} 4. e3 {[%clk 0:02:54]}  Nf6 {[%clk 0:02:51]} 5. Nf3 {[%clk 0:02:51]}  d5 {[%clk 0:02:51]} 6. cxd5 {[%clk 0:02:51]}  Nxd5 {[%clk 0:02:52]} 7. Qc2 {[%clk 0:02:51]}  Nxc3 {[%clk 0:02:50]} 8. bxc3 {[%clk 0:02:50]}  Bd6 {[%clk 0:02:50]} 9. d4 {[%clk 0:02:49]}  Bd7 {[%clk 0:02:21]} 10. Be2 {[%clk 0:02:45]}  Qf6 {[%clk 0:02:16]} 11. O-O {[%clk 0:02:40]}  O-O {[%clk 0:02:12]} 12. d5 {[%clk 0:02:27]}  Ne7 {[%clk 0:02:05]} 13. c4 {[%clk 0:02:28]}  b6 {[%clk 0:01:44]} 14. Bb2 {[%clk 0:02:27]}  Ng6 {[%clk 0:01:39]} 15. Nd2 {[%clk 0:02:20]}  Qe7 {[%clk 0:01:21]} 16. Ne4 {[%clk 0:02:09]}  f5 {[%clk 0:01:20]} 17. Nxd6 {[%clk 0:02:09]}  cxd6 {[%clk 0:01:21]} 18. a4 {[%clk 0:02:08]}  f4 {[%clk 0:01:08]} 19. exf4 {[%clk 0:01:08]}  Nxf4 {[%clk 0:01:09]} 20. Rfe1 {[%clk 0:01:08]}  Qg5 {[%clk 0:00:46]} 21. Bf3 {[%clk 0:00:51]}  Nh3+ {[%clk 0:00:26]} 22. Kh1 {[%clk 0:00:48]}  Bg4 {[%clk 0:00:21]} 23. Be4 {[%clk 0:00:21]}  Nxf2+ {[%clk 0:00:19]} 24. Kg1 {[%clk 0:00:22]}  Nh3+ {[%clk 0:00:18]} 25. Kh1 {[%clk 0:00:21]}  Nf2+ {[%clk 0:00:18]} 26. Kg1 {[%clk 0:00:21]}  Nxe4 {[%clk 0:00:17]} 27. Qxe4 {[%clk 0:00:11]}  Rf4 {[%clk 0:00:17]} 28. Qc2 {[%clk 0:00:11]}  Raf8 {[%clk 0:00:17]} 29. Rf1 {[%clk 0:00:09]}  Rxf1+ {[%clk 0:00:16]} 30. Rxf1 {[%clk 0:00:10]}  Qe3+ {[%clk 0:00:16]} 31. Rf2 {[%clk 0:00:02]}  Qe1+ {[%clk 0:00:16]} 0-1


[Site "https://www.chess.com"]

[Event "Titled Tuesday Blitz October 31 Late 2023"]
[White "Sargsyan, Anna M."]
[Black "Spichkin, Alexander"]
[WhiteFideId "13308130"]
[BlackFideId "4144074"]
[WhiteElo "2530"]
[BlackElo "2432"]
[Result "1-0"]
[Round "11"]
[TimeControl "180+1"]
[Date "2023.10.31"]
[WhiteClock "0:01:28"]
[BlackClock "0:00:47"]
[Board "63"]

1. d4 {[%clk 0:03:00]}  e6 {[%clk 0:02:59]} 2. c4 {[%clk 0:03:01]}  f5 {[%clk 0:02:59]} 3. g3 {[%clk 0:03:00]}  Nf6 {[%clk 0:02:59]} 4. Bg2 {[%clk 0:03:01]}  Be7 {[%clk 0:03:00]} 5. Nc3 {[%clk 0:03:01]}  O-O {[%clk 0:03:00]} 6. e4 {[%clk 0:03:01]}  fxe4 {[%clk 0:02:57]} 7. Nxe4 {[%clk 0:03:02]}  Nxe4 {[%clk 0:02:56]} 8. Bxe4 {[%clk 0:03:03]}  Bf6 {[%clk 0:02:51]} 9. Ne2 {[%clk 0:03:02]}  c5 {[%clk 0:02:52]} 10. O-O {[%clk 0:03:01]}  Nc6 {[%clk 0:02:52]} 11. d5 {[%clk 0:03:00]}  Nd4 {[%clk 0:02:52]} 12. Be3 {[%clk 0:02:53]}  Qb6 {[%clk 0:02:48]} 13. Rb1 {[%clk 0:02:48]}  d6 {[%clk 0:02:42]} 14. Nc3 {[%clk 0:02:46]}  e5 {[%clk 0:02:37]} 15. Qh5 {[%clk 0:02:46]}  g6 {[%clk 0:02:31]} 16. Qd1 {[%clk 0:02:15]}  Bh3 {[%clk 0:02:22]} 17. Bg2 {[%clk 0:02:16]}  Bf5 {[%clk 0:02:20]} 18. Ne4 {[%clk 0:02:14]}  Bg7 {[%clk 0:02:19]} 19. Bxd4 {[%clk 0:02:07]}  cxd4 {[%clk 0:02:12]} 20. Qd2 {[%clk 0:02:05]}  Qa6 {[%clk 0:02:02]} 21. b3 {[%clk 0:02:02]}  Rad8 {[%clk 0:01:59]} 22. Rbe1 {[%clk 0:01:59]}  b5 {[%clk 0:01:59]} 23. Rc1 {[%clk 0:01:51]}  bxc4 {[%clk 0:01:57]} 24. bxc4 {[%clk 0:01:52]}  Rc8 {[%clk 0:01:53]} 25. Rfe1 {[%clk 0:01:43]}  Qa4 {[%clk 0:01:37]} 26. Nxd6 {[%clk 0:01:40]}  Rb8 {[%clk 0:01:30]} 27. c5 {[%clk 0:01:38]}  Bd7 {[%clk 0:01:16]} 28. c6 {[%clk 0:01:35]}  Qa3 {[%clk 0:01:16]} 29. Nc4 {[%clk 0:01:34]}  Qa4 {[%clk 0:01:12]} 30. cxd7 {[%clk 0:01:31]}  Qxd7 {[%clk 0:01:13]} 31. Nxe5 {[%clk 0:01:31]}  Qf5 {[%clk 0:01:09]} 32. Nc6 {[%clk 0:01:29]}  Rb6 {[%clk 0:00:47]} 33. Ne7+ {[%clk 0:01:28]} 1-0


[Site "https://www.chess.com"]

[Event "Titled Tuesday Blitz October 31 Late 2023"]
[White "Dmitrenko, Viktor"]
[Black "Czerw, Dawid"]
[WhiteFideId "14110270"]
[BlackFideId "1145746"]
[WhiteElo "2383"]
[BlackElo "2479"]
[Result "1-0"]
[Round "11"]
[TimeControl "180+1"]
[Date "2023.10.31"]
[WhiteClock "0:00:18"]
[BlackClock "0:03:01"]
[Board "67"]

1. d4 {[%clk 0:03:00]}  c5 {[%clk 0:03:00]} 2. c3 {[%clk 0:02:58]}  e6 {[%clk 0:03:01]} 3. Nf3 {[%clk 0:02:57]}  Nf6 {[%clk 0:03:01]} 4. Bg5 {[%clk 0:02:56]}  b6 {[%clk 0:03:02]} 5. Nbd2 {[%clk 0:02:55]}  Be7 {[%clk 0:03:02]} 6. a4 {[%clk 0:02:53]}  O-O {[%clk 0:03:03]} 7. e3 {[%clk 0:02:51]}  Bb7 {[%clk 0:03:03]} 8. Bd3 {[%clk 0:02:50]}  a6 {[%clk 0:03:04]} 9. O-O {[%clk 0:02:48]}  h6 {[%clk 0:03:05]} 10. Bh4 {[%clk 0:02:46]}  d6 {[%clk 0:03:05]} 11. Qe2 {[%clk 0:02:45]}  Nbd7 {[%clk 0:03:06]} 12. e4 {[%clk 0:02:30]}  Re8 {[%clk 0:03:06]} 13. e5 {[%clk 0:02:25]}  dxe5 {[%clk 0:03:07]} 14. dxe5 {[%clk 0:02:23]}  Nd5 {[%clk 0:03:08]} 15. Bg3 {[%clk 0:02:16]}  Nf8 {[%clk 0:03:07]} 16. Ne4 {[%clk 0:02:11]}  Ng6 {[%clk 0:03:07]} 17. Bc2 {[%clk 0:01:35]}  Qc7 {[%clk 0:03:08]} 18. Nd6 {[%clk 0:01:33]}  Bxd6 {[%clk 0:03:07]} 19. exd6 {[%clk 0:01:34]}  Qc6 {[%clk 0:03:07]} 20. Qe4 {[%clk 0:01:24]}  f5 {[%clk 0:03:06]} 21. Qc4 {[%clk 0:00:59]}  Ndf4 {[%clk 0:03:06]} 22. Bxf4 {[%clk 0:00:57]}  Nxf4 {[%clk 0:03:06]} 23. Qxf4 {[%clk 0:00:57]}  e5 {[%clk 0:03:05]} 24. Qxf5 {[%clk 0:00:50]}  e4 {[%clk 0:03:06]} 25. Ne5 {[%clk 0:00:44]}  Qxd6 {[%clk 0:03:06]} 26. Qf7+ {[%clk 0:00:43]}  Kh8 {[%clk 0:03:06]} 27. Qxb7 {[%clk 0:00:38]}  Qxe5 {[%clk 0:03:06]} 28. Rae1 {[%clk 0:00:36]}  Rab8 {[%clk 0:03:06]} 29. Qxa6 {[%clk 0:00:35]}  Re6 {[%clk 0:03:06]} 30. Qc4 {[%clk 0:00:34]}  Rbe8 {[%clk 0:03:05]} 31. f4 {[%clk 0:00:31]}  Qf5 {[%clk 0:03:05]} 32. Re3 {[%clk 0:00:29]}  Rd8 {[%clk 0:03:04]} 33. Rxe4 {[%clk 0:00:22]}  Rd2 {[%clk 0:03:03]} 34. Qxe6 {[%clk 0:00:19]}  Qxe6 {[%clk 0:03:03]} 35. Rxe6 {[%clk 0:00:20]}  Rxc2 {[%clk 0:03:03]} 36. Rxb6 {[%clk 0:00:19]}  Rxb2 {[%clk 0:03:01]} 37. Rxb2 {[%clk 0:00:18]} 1-0


[Site "https://www.chess.com"]

[Event "Titled Tuesday Blitz October 31 Late 2023"]
[White "Belenkaya, Dina"]
[Black "Florianovitz, Derlei Alex"]
[WhiteFideId "24142654"]
[BlackFideId "2114178"]
[WhiteElo "2447"]
[BlackElo "2288"]
[Result "1-0"]
[Round "11"]
[TimeControl "180+1"]
[Date "2023.10.31"]
[WhiteClock "0:01:01"]
[BlackClock "0:00:11"]
[Board "70"]

1. Nf3 {[%clk 0:03:00]}  c5 {[%clk 0:02:58]} 2. g3 {[%clk 0:03:00]}  Nc6 {[%clk 0:02:57]} 3. Bg2 {[%clk 0:03:01]}  g6 {[%clk 0:02:57]} 4. O-O {[%clk 0:03:01]}  Bg7 {[%clk 0:02:57]} 5. e4 {[%clk 0:03:01]}  e5 {[%clk 0:02:57]} 6. Nc3 {[%clk 0:02:55]}  Nge7 {[%clk 0:02:57]} 7. d3 {[%clk 0:02:56]}  d6 {[%clk 0:02:58]} 8. h3 {[%clk 0:02:54]}  O-O {[%clk 0:02:58]} 9. Nh4 {[%clk 0:02:47]}  a6 {[%clk 0:02:54]} 10. Bg5 {[%clk 0:02:34]}  f6 {[%clk 0:02:52]} 11. Be3 {[%clk 0:02:34]}  b5 {[%clk 0:02:51]} 12. Qd2 {[%clk 0:02:34]}  b4 {[%clk 0:02:50]} 13. Nd5 {[%clk 0:02:33]}  Nxd5 {[%clk 0:02:50]} 14. exd5 {[%clk 0:02:33]}  Ne7 {[%clk 0:02:49]} 15. Bh6 {[%clk 0:02:33]}  Bb7 {[%clk 0:02:39]} 16. Bxg7 {[%clk 0:02:10]}  Kxg7 {[%clk 0:02:40]} 17. c4 {[%clk 0:02:04]}  bxc3 {[%clk 0:02:38]} 18. bxc3 {[%clk 0:02:05]}  Bxd5 {[%clk 0:02:37]} 19. d4 {[%clk 0:02:03]}  Bxg2 {[%clk 0:02:35]} 20. Kxg2 {[%clk 0:02:02]}  e4 {[%clk 0:02:09]} 21. Kg1 {[%clk 0:01:52]}  Nc6 {[%clk 0:02:01]} 22. Rab1 {[%clk 0:01:41]}  cxd4 {[%clk 0:01:58]} 23. Rb7+ {[%clk 0:01:36]}  Rf7 {[%clk 0:01:58]} 24. Rxf7+ {[%clk 0:01:35]}  Kxf7 {[%clk 0:01:59]} 25. Qh6 {[%clk 0:01:35]}  Qf8 {[%clk 0:01:35]} 26. Qf4 {[%clk 0:01:23]}  g5 {[%clk 0:01:25]} 27. Qxe4 {[%clk 0:01:24]}  gxh4 {[%clk 0:01:25]} 28. Qxc6 {[%clk 0:01:18]}  dxc3 {[%clk 0:00:45]} 29. Qxc3 {[%clk 0:01:09]}  Rc8 {[%clk 0:00:37]} 30. Qb3+ {[%clk 0:01:08]}  Kg7 {[%clk 0:00:37]} 31. Rb1 {[%clk 0:01:05]}  Qe7 {[%clk 0:00:30]} 32. Qf3 {[%clk 0:01:01]}  hxg3 {[%clk 0:00:26]} 33. Qg4+ {[%clk 0:01:01]}  Kh8 {[%clk 0:00:11]} 34. Qxc8+ {[%clk 0:01:01]} 1-0


[Site "https://www.chess.com"]